[Event "EYCC Girls-U18 2019"]
[Site "Bratislava"]
[Date "2019.08.07"]
[Round "6.24"]
[White "Ucekajova, Veronika"]
[Black "Sankova, Stella"]
[Result "1-0"]
[ECO "B06"]
[WhiteElo "1836"]
[BlackElo "1997"]
[Annotator "NA"]
[PlyCount "61"]
[EventDate "2019.08.02"]
[EventType "swiss"]
[EventCountry "SVK"]
[SourceTitle "playchess.com"]
[Source "ChessBase"]
[SourceQuality "1"]
[TimeControl "40/5400+30:1800+30"]

1. e4 {[%emt 0:00:00]} g6 {[%emt 0:00:00]} 2. d4 {[%emt 0:00:00]} Bg7 {[%emt 0:00:00]} 3. Nf3 {[%emt 0:00:21]} d6 {[%emt 0:00:00]} 4. Nc3 {[%emt 0:00:23]} c6 {[%emt 0:00:00]} 5. a4 {[%emt 0:02:02]} Nf6 {[%emt 0:00:00]} 6. a5 {[%emt 0:02:11]} O-O {[%emt 0:00:52]} 7. Be2 {[%emt 0:00:25]} Qc7 {[%emt 0:02:29]} 8. O-O {[%emt 0:01:28]} e5 {[%emt 0:03:57]} 9. dxe5 {[%emt 0:02:52]} dxe5 {[%emt 0:00:04]} 10. Bc4 {[%emt 0:01:35]} Nbd7 {[%emt 0:08:08]} 11. h3 {[%emt 0:07:44]} Nc5 {[%emt 0:01:26]} 12. Qe2 {[%emt 0:00:08]} Be6 {[%emt 0:02:01]} 13. Ng5 {[%emt 0:07:09]} Rfe8 {[%emt 0:07:41]} 14. Be3 {[%emt 0:11:20]} Bxc4 {[%emt 0:03:20]} 15. Qxc4 {[%emt 0:00:07]} Na6 {[%emt 0:11:45]} 16. Rfd1 {[%emt 0:14:53]} Nh5 {[%emt 0:08:09]} 17. Rd2 {[%emt 0:11:31]} h6 {[%emt 0:00:33]} 18. Nf3 {[%emt 0:00:15]} Re7 {[%emt 0:00:24]} 19. b4 {[%emt 0:01:54]} Nf4 {[%emt 0:04:08]} 20. Rad1 {[%emt 0:01:16]} Ne6 {[%emt 0:01:28]} 21. Qb3 {[%emt 0:05:08]} Kh7 {[%emt 0:05:45]} 22. Na4 {[%emt 0:10:27]} Qc8 {[%emt 0:16:20]} 23. c4 {[%emt 0:05:19]} Qe8 {[%emt 0:09:50]} 24. b5 {[%emt 0:05:33]} cxb5 {[%emt 0:00:23]} 25. cxb5 {[%emt 0:00:01]} Nac7 {[%emt 0:00:11]} 26. b6 {[%emt 0:00:27]} axb6 {[%emt 0:01:31]} 27. Bxb6 {[%emt 0:00:08]} Nb5 {[%emt 0:00:51]} 28. Nc3 {[%emt 0:02:38]} Nbd4 {[%emt 0:01:57]} 29. Nxd4 {[%emt 0:02:20]} Nxd4 {[%emt 0:00:07]} 30. Qa3 {[%emt 0:00:52]} Nb5 {[%emt 0:06:06]} 31. Nxb5 {[%emt 0:00:12]} 1-0